bitfinex-derivatives/quotes_BTCF0:USTF0_20250811
["timestamp","ask_amount","ask_price","bid_price","bid_amount"]
[1754930319451,1.24337476,120450.0,120440.0,0.0880261]
[1754930319751,0.8648027,120450.0,120440.0,0.0880261]
[1754930319952,1.24337476,120450.0,120440.0,0.0880261]
[1754930321348,0.46169476,120450.0,120440.0,0.005]
[1754930321547,1.24329476,120450.0,120440.0,0.005]
[1754930321948,1.40934276,120450.0,120440.0,0.005]
[1754930322947,1.40934276,120450.0,120440.0,0.002]
[1754930323254,1.40934276,120450.0,120440.0,0.001]
[1754930323457,1.80497945,120450.0,120440.0,1e-07]
[1754930323648,1.07341945,120450.0,120440.0,1e-07]
[1754930323947,1.85497945,120450.0,120440.0,1e-07]
[1754930325454,0.0830503,120410.0,120400.0,0.3322985]
[1754930325650,0.8647103,120410.0,120400.0,0.4197685]
[1754930326354,0.87328734,120410.0,120400.0,0.4197685]
[1754930326550,0.8647103,120410.0,120400.0,0.4197685]
[1754930326747,0.8647103,120410.0,120400.0,0.4227685]
[1754930327147,0.8647103,120410.0,120400.0,0.4257685]
[1754930327345,0.0001,120410.0,120400.0,0.80434056]
[1754930327547,0.78162,120410.0,120400.0,0.80434056]
[1754930328058,0.8647103,120410.0,120400.0,0.80434056]
[1754930328545,0.8647103,120410.0,120400.0,0.4257685]
[1754930329654,0.8647103,120410.0,120400.0,0.80434056]
[1754930330050,0.8646303,120410.0,120400.0,0.4257685]
[1754930331252,0.78158,120410.0,120400.0,0.4257685]
[1754930331548,0.8646303,120410.0,120400.0,0.4257685]
[1754930332557,0.78158,120410.0,120400.0,0.4257685]
[1754930332756,0.8646303,120410.0,120400.0,0.4257685]
[1754930333058,0.78158,120410.0,120400.0,0.4257685]
[1754930333251,0.0001,120410.0,120400.0,0.80434056]
[1754930333453,0.78158,120410.0,120400.0,0.80434056]
[1754930333653,0.8646303,120410.0,120400.0,0.80434056]
[1754930334358,0.78154,120410.0,120400.0,0.80434056]
[1754930334763,0.8645903,120410.0,120400.0,0.80434056]
[1754930335361,0.8645903,120410.0,120400.0,0.4257685]
[1754930335855,0.46172236,120410.0,120400.0,0.00608]
[1754930336062,1.24312236,120410.0,120400.0,0.00608]
[1754930336455,0.46172236,120410.0,120400.0,0.00608]
[1754930336862,1.24312236,120410.0,120400.0,0.00608]
[1754930337361,1.24312236,120410.0,120400.0,0.00408]
[1754930337862,0.8645503,120410.0,120400.0,0.00408]
[1754930338159,1.24312236,120410.0,120400.0,0.00408]
[1754930338359,1.24312236,120410.0,120400.0,0.00108]
[1754930338556,1.24312236,120410.0,120400.0,0.00208]
[1754930339061,1.24312236,120410.0,120400.0,0.00108]
[1754930339363,1.24312236,120410.0,120400.0,8e-05]
[1754930340256,1.24308236,120410.0,120400.0,8e-05]
[1754930340459,0.46172236,120410.0,120400.0,8e-05]
[1754930340861,1.24304236,120410.0,120400.0,8e-05]
[1754930341366,1.42566901,120410.0,120400.0,8e-05]
[1754930342056,1.42566901,120410.0,120380.0,0.0001]
[1754930342057,0.0830639,120390.0,120380.0,0.0001]
[1754930342265,1.24305596,120390.0,120380.0,2e-05]
[1754930342654,2.75966006,120390.0,120380.0,2e-05]
[1754930343258,2.74305596,120390.0,120380.0,2e-05]
[1754930343457,2.74305596,120390.0,120380.0,0.00202]
[1754930344064,2.90919196,120390.0,120380.0,0.00202]
[1754930344760,1.7492999,120390.0,120380.0,2e-05]
[1754930344959,2.90915196,120390.0,120380.0,2e-05]
[1754930345153,2.54728615,120390.0,120380.0,2e-05]
[1754930345357,2.92585821,120390.0,120380.0,2e-05]
[1754930345761,2.82583403,120390.0,120380.0,2e-05]
[1754930345962,2.82683403,120390.0,120380.0,2e-05]
[1754930346963,2.99305003,120390.0,120380.0,2e-05]
[1754930347155,0.0830916,120350.0,120340.0,0.2991155]
[1754930347356,1.24308366,120350.0,120340.0,0.1660385]
[1754930347554,0.0830985,120340.0,120330.0,0.18326184]
[1754930347863,1.24309056,120340.0,120330.0,0.16612724]
[1754930348072,1.25160479,120340.0,120330.0,0.16612724]
[1754930348563,0.87303273,120340.0,120330.0,0.09490724]
[1754930348859,0.8645185,120340.0,120330.0,0.16612724]
[1754930349056,0.46177056,120340.0,120330.0,0.13327724]
[1754930349256,1.24313056,120340.0,120330.0,0.1660454]
[1754930349458,1.24313056,120340.0,120330.0,0.08294]
[1754930349760,0.0001,120340.0,120330.0,0.1660454]
[1754930349965,0.0001,120340.0,120330.0,0.54761746]
[1754930350264,0.47005196,120340.0,120330.0,0.1730454]
[1754930350465,1.24313056,120340.0,120330.0,0.1730454]
[1754930350761,0.8645585,120340.0,120330.0,0.1730454]
[1754930351756,0.46177056,120340.0,120330.0,0.08694]
[1754930351960,1.24321056,120340.0,120330.0,0.08894]
[1754930352151,0.46177056,120340.0,120330.0,0.08894]
[1754930352357,1.25176163,120340.0,120330.0,0.1680453]
[1754930352553,1.25176163,120340.0,120330.0,0.1710453]
[1754930352860,0.87318957,120340.0,120330.0,0.1710453]
[1754930353064,1.25176163,120340.0,120330.0,0.1710453]
[1754930353461,1.25176163,120340.0,120330.0,0.0881053]
[1754930353655,0.46177056,120340.0,120330.0,0.1379253]
[1754930353860,0.0001,120340.0,120330.0,0.1710453]
[1754930354065,0.0831984,120340.0,120330.0,0.54961736]
[1754930354266,0.0001,120340.0,120330.0,0.54961736]
[1754930354466,0.78258,120340.0,120330.0,0.54961736]
[1754930354761,0.8656784,120340.0,120330.0,0.54961736]
[1754930354967,0.0831984,120340.0,120330.0,0.54961736]
[1754930355163,0.46177046,120340.0,120330.0,0.1710454]
[1754930355368,1.24417046,120340.0,120330.0,0.1710453]
[1754930356362,0.8655984,120340.0,120330.0,0.1710453]
[1754930356566,0.0831984,120340.0,120330.0,0.1710453]
[1754930356970,0.0001,120340.0,120330.0,0.54961736]
[1754930357272,0.78234,120340.0,120330.0,0.71581736]
[1754930357568,0.0001,120340.0,120330.0,0.71581736]
[1754930357872,0.7823,120340.0,120330.0,0.71581736]
[1754930358567,0.7823,120340.0,120330.0,0.81571736]
[1754930358966,0.78246,120340.0,120330.0,0.4371453]
[1754930359166,0.8662384,120340.0,120330.0,0.4371453]
[1754930359560,0.78314,120340.0,120330.0,0.81571736]
[1754930359766,0.78314,120340.0,120330.0,0.64951736]
[1754930360062,0.0831985,120340.0,120330.0,0.2709453]
[1754930360269,0.8662385,120340.0,120330.0,0.2709453]
[1754930360668,0.8677185,120340.0,120330.0,0.2709453]
[1754930361765,0.5283551,120340.0,120330.0,0.2709453]
[1754930361971,1.3127151,120340.0,120330.0,0.2709453]
[1754930362172,0.0831985,120340.0,120330.0,0.2709453]
[1754930362368,0.8675585,120340.0,120330.0,0.2710339]
[1754930363569,0.8676385,120340.0,120330.0,0.2710339]
[1754930365363,0.8676385,120340.0,120330.0,0.2212139]
[1754930365864,0.8676385,120340.0,120330.0,0.2553839]
[1754930366068,0.8676385,120340.0,120330.0,0.2731239]
[1754930367176,0.0831985,120340.0,120330.0,0.2731239]
[1754930367376,0.8672385,120340.0,120330.0,0.2731239]
[1754930368972,0.0831985,120340.0,120330.0,0.2731239]
[1754930369177,0.8668385,120340.0,120330.0,0.2731239]
[1754930369777,0.0001,120340.0,120330.0,0.2731239]
[1754930370077,0.8668784,120340.0,120330.0,0.2731239]
[1754930370676,0.0831984,120340.0,120330.0,0.2731239]
[1754930370975,0.528355,120340.0,120330.0,0.1049886]
[1754930371183,1.311995,120340.0,120330.0,0.1049886]
[1754930371984,1.311995,120340.0,120330.0,0.1029886]
[1754930372780,1.311995,120340.0,120330.0,0.1009886]
[1754930373180,0.528355,120340.0,120330.0,0.1009886]
[1754930373369,1.32884084,120340.0,120330.0,0.1009886]
[1754930373573,1.312235,120340.0,120330.0,0.1009886]
[1754930374285,1.49554966,120340.0,120330.0,0.1009886]
[1754930374476,0.71166966,120340.0,120330.0,0.1009886]
[1754930374788,1.32986966,120340.0,120330.0,0.1240686]
[1754930375182,0.54546966,120340.0,120330.0,0.1009886]
[1754930375887,1.33110966,120340.0,120330.0,0.0999886]
[1754930376587,1.33210966,120340.0,120330.0,0.0999886]
[1754930376783,1.33210966,120340.0,120330.0,0.1230686]
[1754930376984,1.314995,120340.0,120330.0,0.1230686]
[1754930378686,0.530355,120340.0,120330.0,0.0999886]
[1754930378886,1.314755,120340.0,120330.0,0.0999886]
[1754930379084,1.314755,120340.0,120330.0,0.1230686]
[1754930379685,1.314755,120340.0,120330.0,0.2061739]
[1754930379882,1.314755,120340.0,120330.0,0.2334839]
[1754930380088,0.530355,120340.0,120330.0,0.3072139]
[1754930380289,1.314395,120340.0,120330.0,0.3072139]
[1754930380884,0.0851984,120340.0,120330.0,0.3072139]
[1754930381086,0.8692384,120340.0,120330.0,0.3072139]
[1754930381485,1.314395,120340.0,120330.0,0.3072139]
[1754930382191,1.2497781,120340.0,120330.0,0.3072139]
[1754930382791,0.4650981,120340.0,120330.0,0.3072139]
[1754930382992,1.2499781,120340.0,120330.0,0.3072139]
[1754930383589,0.4650981,120340.0,120330.0,0.3072139]
[1754930383788,1.2498581,120340.0,120330.0,0.3072139]
[1754930385996,0.8699584,120340.0,120330.0,0.3072139]
[1754930386196,1.2498581,120340.0,120330.0,0.3072139]
[1754930386896,1.2490981,120340.0,120330.0,0.3072139]
[1754930389996,1.2490981,120340.0,120330.0,0.2241086]
[1754930390391,0.4650981,120340.0,120330.0,0.2241086]
[1754930390592,1.2482581,120340.0,120330.0,0.307214]
[1754930391588,0.8683584,120340.0,120330.0,0.307214]
[1754930391788,0.8683584,120340.0,120330.0,0.6871137]
[1754930391789,0.0021,120340.0,120330.0,0.6871137]
[1754930392399,0.0021,120340.0,120330.0,0.307214]
[1754930392400,1.2488181,120340.0,120330.0,0.307214]
[1754930392792,0.8689184,120340.0,120330.0,0.307214]
[1754930392988,1.2488181,120340.0,120330.0,0.307214]
[1754930396397,0.8689184,120340.0,120330.0,0.307214]
[1754930396599,1.2492981,120340.0,120330.0,0.2062641]
[1754930396798,1.2492981,120340.0,120330.0,0.3084541]
[1754930398401,1.2492981,120340.0,120330.0,0.1515586]
[1754930398901,1.2492981,120340.0,120330.0,0.2346642]
[1754930399304,1.2492981,120340.0,120330.0,0.3084542]
[1754930399601,1.25074463,120340.0,120330.0,0.3084542]
[1754930400600,1.25010463,120340.0,120330.0,0.2062642]
[1754930400801,1.25010463,120340.0,120330.0,0.1231586]
[1754930401996,0.87020493,120340.0,120330.0,0.1231586]
[1754930402191,1.25010463,120340.0,120330.0,0.1231586]
[1754930402404,1.25010463,120340.0,120330.0,0.0731586]
[1754930402603,0.46654463,120340.0,120330.0,0.0499886]
[1754930402802,1.25078463,120340.0,120330.0,0.0499886]
[1754930403305,0.46654463,120340.0,120330.0,0.0499886]
[1754930403497,1.25078463,120340.0,120330.0,0.0499886]
[1754930403691,1.25054463,120340.0,120330.0,0.0499886]
[1754930404402,0.46654463,120340.0,120330.0,0.0499886]
[1754930404604,1.25026463,120340.0,120330.0,0.0499886]
[1754930404795,1.25030463,120340.0,120330.0,0.0499886]
[1754930405502,0.46654463,120340.0,120330.0,0.0499886]
[1754930405702,1.25030463,120340.0,120330.0,0.0499886]
[1754930406302,0.46654463,120340.0,120330.0,0.0499886]
[1754930406507,1.25002463,120340.0,120330.0,0.0499886]
[1754930406809,0.46654463,120340.0,120330.0,0.0499886]
[1754930407105,1.25014463,120340.0,120330.0,0.0499886]
[1754930407307,0.46654463,120340.0,120330.0,0.0499886]
[1754930407498,1.25010463,120340.0,120330.0,0.0499886]
[1754930408300,1.28420463,120340.0,120330.0,0.0499886]
[1754930409303,1.42190463,120340.0,120330.0,0.0499886]
[1754930409504,0.63834463,120340.0,120330.0,0.0499886]
[1754930409710,1.42170463,120340.0,120330.0,0.0499886]
[1754930410210,1.28400463,120340.0,120330.0,0.0731586]
[1754930411213,0.50064463,120340.0,120330.0,0.0731586]
[1754930411400,0.0831194,120310.0,120300.0,0.17196698]
[1754930411598,0.4631191,120310.0,120300.0,0.20036698]
[1754930411803,1.2459591,120310.0,120300.0,0.20036698]
[1754930412000,0.4631191,120310.0,120300.0,0.14879698]
[1754930412209,1.2459591,120310.0,120300.0,0.14879698]
[1754930412409,0.0831263,120300.0,120290.0,0.36529353]
[1754930412607,0.0831263,120300.0,120290.0,0.34212353]
[1754930412608,1.612406,120300.0,120290.0,0.34212353]
[1754930412803,2.395246,120300.0,120290.0,0.14879698]
[1754930413204,2.40373216,120300.0,120290.0,0.02317]
[1754930414107,2.40473216,120300.0,120290.0,0.02317]
[1754930414808,2.47169802,120300.0,120290.0,0.02317]
[1754930415104,2.47269802,120300.0,120290.0,0.02317]
[1754930415308,0.0831402,120280.0,120270.0,0.28247248]
[1754930415605,0.0831471,120270.0,120260.0,0.14879698]
[1754930415808,1.2478268,120270.0,120260.0,0.17196698]
[1754930416104,0.4631468,120270.0,120260.0,0.17196698]
[1754930416303,1.2483468,120270.0,120260.0,0.14879698]
[1754930416504,0.083154,120260.0,120250.0,0.02317]
[1754930416701,0.0831609,120250.0,120240.0,0.02327]
[1754930416896,2.3982006,120250.0,120240.0,0.02327]
[1754930417099,1.6125206,120250.0,120240.0,0.02327]
[1754930417301,2.7780203,120250.0,120240.0,0.02327]
[1754930417604,0.0831678,120240.0,120230.0,0.0001]
[1754930417808,1.6285272,120240.0,120230.0,0.0001]
[1754930418111,1.7948712,120240.0,120230.0,0.0001]
[1754930418313,1.0093112,120240.0,120230.0,0.0001]
[1754930418613,1.6286072,120240.0,120230.0,0.0001]
[1754930418911,1.6287472,120240.0,120230.0,0.0002]
[1754930419115,1.7958112,120240.0,120230.0,0.0002]
[1754930419307,1.7957712,120240.0,120230.0,0.0002]
[1754930419617,1.0094112,120240.0,120230.0,0.0012]
[1754930419800,0.8430672,120240.0,120230.0,0.02619]
[1754930420001,1.6293872,120240.0,120230.0,0.02619]
[1754930420202,1.31571795,120240.0,120230.0,0.02619]
[1754930420600,0.52939795,120240.0,120230.0,0.02619]
[1754930420799,1.48602195,120240.0,120230.0,0.0032]
[1754930421009,0.0831817,120220.0,120210.0,0.02299]
[1754930421314,0.0831956,120200.0,120190.0,0.04995]
[1754930421514,1.38822655,120200.0,120190.0,0.0987]
[1754930421704,1.38822655,120200.0,120190.0,0.2048925]
[1754930421906,0.8589408,120200.0,120190.0,0.2048925]
[1754930422210,0.8589208,120200.0,120190.0,0.2049925]
[1754930422415,0.0675608,120200.0,120190.0,0.2049925]
[1754930422714,0.8588808,120200.0,120190.0,0.2049925]
[1754930423010,0.0675608,120200.0,120190.0,0.2049925]
[1754930423311,0.8591208,120200.0,120190.0,0.2069925]
[1754930424008,0.0675608,120200.0,120190.0,0.2069925]
[1754930424310,0.8608808,120200.0,120190.0,0.2069925]
[1754930424902,1.30701095,120200.0,120190.0,0.2069926]
[1754930425107,0.59688655,120200.0,120190.0,0.12379]
[1754930425406,1.39044655,120200.0,120190.0,0.12379]
[1754930425909,2.1930167,120200.0,120190.0,0.0021]
[1754930426100,0.0832156,120180.0,120160.0,0.02299]
[1754930426303,1.67934275,120180.0,120170.0,0.1500567]
[1754930426600,0.2496681,120170.0,120150.0,0.0833102]
[1754930426808,1.3996492,120180.0,120160.0,0.2651446]
[1754930427008,0.0832236,120160.0,120150.0,0.0833071]
[1754930427208,0.52935375,120160.0,120150.0,0.02307]
[1754930427811,1.32771375,120160.0,120150.0,0.07302]
[1754930428213,0.52935375,120160.0,120150.0,0.07302]
[1754930428415,1.32815375,120160.0,120150.0,0.05522]
[1754930428615,1.32815375,120160.0,120150.0,0.02307]
[1754930428811,0.0832236,120160.0,120150.0,0.1063006]
[1754930429013,0.44623015,120170.0,120160.0,0.0832236]
[1754930429211,0.0001,120170.0,120160.0,0.1561636]
[1754930429520,1.24527015,120170.0,120160.0,0.07294]
[1754930429706,0.0001,120170.0,120160.0,0.1561637]
[1754930430421,0.44623015,120170.0,120160.0,0.07394]
[1754930430612,1.33204685,120170.0,120160.0,0.1571637]
[1754930431216,0.0021,120170.0,120160.0,0.1571637]
[1754930431525,0.44823015,120170.0,120160.0,0.1571637]
[1754930431719,0.0021,120170.0,120160.0,0.1571637]
[1754930431915,0.0021,120170.0,120160.0,0.3736037]
[1754930432616,0.80494,120170.0,120160.0,0.3726037]
[1754930433012,1.15,120180.0,120170.0,0.0832168]
[1754930433225,0.53286165,120200.0,120190.0,0.0832029]
[1754930433226,0.0867315,120200.0,120190.0,0.0832029]
[1754930433524,2.11605765,120200.0,120190.0,0.1561429]
[1754930433712,2.92269765,120200.0,120190.0,0.1561429]
[1754930433913,2.11605765,120200.0,120190.0,0.1561429]
[1754930434114,2.92261765,120200.0,120190.0,0.1561429]
[1754930434314,2.92271765,120200.0,120190.0,0.1562429]
[1754930434515,2.11715765,120200.0,120190.0,0.1562429]
[1754930434719,2.92359765,120200.0,120190.0,0.1562429]
[1754930435014,3.3697278,120200.0,120190.0,0.0001]
[1754930435218,3.3697278,120200.0,120170.0,0.3225872]
[1754930435219,0.0832098,120180.0,120170.0,0.02299]
[1754930435408,1.33767995,120180.0,120170.0,0.02299]
[1754930435612,1.33771995,120180.0,120170.0,0.02299]
[1754930436015,0.0832237,120160.0,120150.0,8e-05]
[1754930436220,1.33781385,120160.0,120150.0,8e-05]
[1754930436422,1.33791385,120160.0,120150.0,0.00018]
[1754930436722,0.53155385,120160.0,120150.0,0.1064006]
[1754930437125,1.33779385,120160.0,120150.0,0.1563506]
[1754930437422,1.33759385,120160.0,120150.0,0.1064006]
[1754930437619,1.33759385,120160.0,120150.0,0.1084006]
[1754930438014,0.53155385,120160.0,120150.0,0.02517]
[1754930438213,1.33795385,120160.0,120150.0,0.00218]
[1754930438416,1.33795385,120160.0,120150.0,0.0854106]
[1754930438618,1.33795385,120160.0,120150.0,0.1084006]
[1754930439118,1.33883385,120160.0,120150.0,0.00218]
[1754930439521,0.53155385,120160.0,120150.0,0.00218]
[1754930439728,1.33883385,120160.0,120150.0,0.00218]
[1754930440112,0.977684,120160.0,120150.0,0.00218]
[1754930440423,1.33867385,120160.0,120150.0,0.00218]
[1754930440618,1.784804,120160.0,120150.0,0.00218]
[1754930440921,0.0832445,120130.0,120120.0,0.272743]
[1754930441120,1.40439395,120130.0,120120.0,0.138391]
[1754930441323,0.59755395,120130.0,120120.0,0.02299]
[1754930441620,0.1665103,120120.0,120110.0,0.1062483]
[1754930441814,0.69589815,120120.0,120110.0,0.02299]
[1754930442011,1.25359015,120120.0,120110.0,0.1384983]
[1754930442324,0.8907914,120120.0,120110.0,0.07304]
[1754930442528,0.52942241,120120.0,120110.0,0.1561984]
[1754930442922,0.89685226,120120.0,120110.0,0.1561984]
[1754930443119,0.52942251,120120.0,120110.0,0.1561984]
[1754930443421,0.89761236,120120.0,120110.0,0.1561984]
[1754930443620,1.26249101,120120.0,120110.0,0.1561984]
[1754930443819,0.00204086,120120.0,120110.0,0.1561984]
[1754930444019,1.26589101,120120.0,120110.0,0.1561984]
[1754930444217,0.53142251,120120.0,120110.0,0.07294]
[1754930444420,0.0832584,120110.0,120100.0,0.0832636]
[1754930444619,0.52938855,120110.0,120100.0,0.1332136]
[1754930444821,1.34934855,120110.0,120100.0,0.04995]
[1754930445219,0.52938855,120110.0,120100.0,0.1562054]
[1754930445428,1.34914855,120110.0,120100.0,0.1562054]
[1754930445726,0.1154084,120110.0,120100.0,0.1062054]
[1754930445929,0.1164084,120110.0,120100.0,0.1062054]
[1754930446121,0.9364484,120110.0,120100.0,0.1062054]
[1754930446313,0.56896855,120110.0,120100.0,0.1062054]
[1754930446515,0.1238384,120110.0,120100.0,0.1062054]
[1754930446824,0.0852584,120110.0,120100.0,0.1062054]
[1754930447033,0.56353855,120110.0,120100.0,0.1062054]
[1754930447328,0.56996855,120110.0,120100.0,0.1062054]
[1754930447531,1.39212855,120110.0,120100.0,0.1062054]
[1754930447915,1.39212855,120110.0,120100.0,0.1571554]
[1754930448120,0.53138855,120110.0,120100.0,0.1571554]
[1754930448325,1.39197855,120110.0,120100.0,0.1571554]
[1754930448728,0.9458484,120110.0,120100.0,0.1571554]
[1754930449029,1.39197855,120110.0,120100.0,0.1571554]
[1754930449833,0.9458488,120110.0,120100.0,0.1571554]
[1754930450023,1.30872015,120110.0,120100.0,0.1571554]
[1754930450722,1.30872015,120110.0,120090.0,0.3330786]
[1754930450723,0.0832727,120090.0,120080.0,0.02412]
[1754930450930,1.39027285,120090.0,120080.0,0.03713833]
[1754930451124,0.1215427,120090.0,120080.0,0.07507]
[1754930451325,1.39103285,120090.0,120080.0,0.07507]
[1754930451630,1.39103285,120090.0,120080.0,0.1583491]
[1754930451929,1.39103285,120090.0,120080.0,0.1414791]
[1754930452125,0.9449027,120090.0,120080.0,0.1414791]
[1754930452429,0.56767285,120090.0,120080.0,0.1073991]
[1754930452819,1.27077015,120090.0,120080.0,0.1593491]
[1754930453020,0.9463022,120090.0,120080.0,0.3259031]
[1754930453227,0.86303,120090.0,120080.0,0.3259031]
[1754930453432,0.61877525,120110.0,120090.0,0.3330846]
[1754930453731,0.1154153,120100.0,120090.0,0.2174902]
[1754930453930,1.39226545,120100.0,120090.0,0.2174902]
[1754930454119,1.30900015,120100.0,120090.0,0.2174902]
[1754930454316,0.03827,120100.0,120090.0,0.2415102]
[1754930454522,0.86255,120100.0,120090.0,0.2415102]
[1754930454722,1.30868015,120100.0,120090.0,0.2415102]
[1754930454927,1.39182535,120100.0,120090.0,0.2415102]
[1754930455123,1.39182535,120100.0,120090.0,0.2425136]
[1754930455325,1.30856015,120100.0,120090.0,0.2425136]
[1754930455525,1.39182535,120100.0,120090.0,0.2425136]
[1754930455727,0.48440015,120100.0,120090.0,0.24318969]
[1754930455928,0.86231,120100.0,120090.0,0.24318969]
[1754930456127,0.86231,120100.0,120090.0,0.25348969]
[1754930456634,0.03827,120100.0,120090.0,0.25348969]
[1754930457021,0.86159,120100.0,120090.0,0.25348969]
[1754930457229,0.56766535,120100.0,120090.0,0.11927159]
[1754930457433,1.39086535,120100.0,120090.0,0.11994675]
[1754930458327,0.56766535,120100.0,120090.0,0.11994675]
[1754930458636,1.39074535,120100.0,120090.0,0.03734981]
[1754930458828,1.39030535,120100.0,120090.0,0.12062191]
[1754930459026,1.8364355,120100.0,120090.0,0.01332981]
[1754930459236,1.0137955,120100.0,120090.0,0.00302981]
[1754930459427,1.0137955,120100.0,120090.0,0.01502981]
[1754930459633,1.8361555,120100.0,120090.0,0.01502981]
[1754930460727,1.0167955,120100.0,120090.0,0.01502981]
[1754930460928,1.0167955,120100.0,120060.0,0.24996392]
[1754930460929,0.083286,120070.0,120060.0,0.24996392]
[1754930461244,1.54118015,120070.0,120060.0,0.083293]
[1754930461424,1.54106015,120070.0,120060.0,0.107313]
[1754930461837,0.84518,120070.0,120060.0,0.107313]
[1754930462039,1.37443645,120070.0,120060.0,0.107313]
[1754930462240,0.02314,120070.0,120060.0,0.107313]
[1754930462431,0.55255645,120070.0,120060.0,0.107313]
[1754930462630,0.1064263,120070.0,120060.0,0.107313]
[1754930463026,0.84502,120070.0,120060.0,0.107313]
[1754930463234,1.37431665,120070.0,120060.0,0.107313]
[1754930463433,1.29103015,120070.0,120060.0,0.107313]
[1754930463631,1.29305015,120070.0,120060.0,0.158363]
[1754930464034,1.37833665,120070.0,120060.0,0.158363]
[1754930464439,0.55665665,120070.0,120060.0,0.158363]
[1754930464639,1.29505015,120070.0,120060.0,0.158363]
[1754930465340,1.37833665,120070.0,120060.0,0.158363]
[1754930466242,0.55665665,120070.0,120060.0,0.141493]
[1754930466436,1.37789665,120070.0,120060.0,0.107413]
[1754930466638,0.55665665,120070.0,120060.0,0.1074134]
[1754930466847,0.1105265,120070.0,120060.0,0.1074134]
[1754930467140,1.37689665,120070.0,120060.0,0.1074134]
[1754930467438,1.37673665,120070.0,120060.0,0.02412]
[1754930467644,2.52813665,120070.0,120060.0,0.0001]
[1754930467945,0.0833004,120050.0,120040.0,0.2739382]
[1754930468140,0.9261404,120050.0,120040.0,0.107324]
[1754930468344,0.0833143,120030.0,120020.0,0.0833192]
[1754930468638,0.84356,120030.0,120020.0,0.1342692]
[1754930468835,0.2498931,120060.0,120020.0,0.1342692]
[1754930469042,0.70433761,120060.0,120050.0,0.0833004]
[1754930469239,0.70443761,120060.0,120050.0,0.0001]
[1754930469647,1.52647761,120060.0,120050.0,0.0001]
[1754930469838,0.0833236,120020.0,120010.0,0.083326]
[1754930470043,0.69611015,120020.0,120010.0,0.02402]
[1754930470242,0.24998,120020.0,120010.0,0.1073482]
[1754930470438,0.7132617,120040.0,120020.0,0.2499547]
[1754930470639,0.01719455,120040.0,120030.0,0.1073343]
[1754930470839,0.84559455,120040.0,120030.0,0.1582843]
[1754930471142,0.92912195,120040.0,120030.0,0.1583843]
[1754930471342,1.3767321,120040.0,120030.0,0.02412]
[1754930471549,1.3780921,120040.0,120030.0,0.0001]
[1754930471746,0.5467321,120040.0,120030.0,0.0001]
[1754930472046,1.54466811,120040.0,120030.0,0.0001]
[1754930472244,0.71334811,120040.0,120030.0,0.0001]
[1754930472440,1.54482811,120040.0,120030.0,0.0001]
[1754930472738,0.5477321,120040.0,120030.0,0.0834143]
[1754930472946,0.4644247,120040.0,120030.0,0.1074343]
[1754930473141,0.93460195,120040.0,120030.0,0.1074343]
[1754930473442,0.93580195,120040.0,120030.0,0.1074343]
[1754930473643,0.5477321,120040.0,120030.0,0.1074343]
[1754930473839,0.0021,120040.0,120030.0,0.1583843]
[1754930474248,0.51171079,120060.0,120050.0,0.0833004]
[1754930474445,0.06558064,120060.0,120050.0,0.1582704]
[1754930474743,0.0086232,120080.0,120060.0,0.0832935]
[1754930474943,0.46323356,120090.0,120070.0,0.3248255]
[1754930475140,0.54650626,120090.0,120080.0,0.1072996]
[1754930475336,0.0833126,120040.0,120030.0,0.0833128]
[1754930475537,0.44613015,120050.0,120040.0,0.2499189]
[1754930475738,0.0001,120050.0,120040.0,0.1582741]
[1754930476038,1.36869055,120050.0,120040.0,0.02402]
[1754930476249,0.9756607,120050.0,120040.0,0.12382]
[1754930476439,0.9756607,120050.0,120040.0,0.0998]
[1754930476640,1.8153007,120050.0,120040.0,0.0998]
[1754930476949,0.52953055,120050.0,120040.0,0.12382]
[1754930477238,0.52953055,120050.0,120040.0,0.17477]
[1754930477445,1.37045055,120050.0,120040.0,0.17477]
[1754930477646,0.9766607,120050.0,120040.0,0.0998]
[1754930477850,1.8177007,120050.0,120040.0,0.0998]
[1754930478236,0.52944475,120030.0,120020.0,0.02428]
[1754930478542,1.37446475,120030.0,120020.0,0.1076016]
[1754930478748,0.52954475,120030.0,120020.0,0.12428]
[1754930478943,1.37454475,120030.0,120020.0,0.2423516]
[1754930479145,1.37470475,120030.0,120020.0,0.2583316]
[1754930479345,0.52954475,120030.0,120020.0,0.2583316]
[1754930479545,0.0834146,120030.0,120020.0,0.2583316]
[1754930479744,0.0001,120030.0,120020.0,0.2583316]
[1754930480046,1.54238585,120060.0,120050.0,0.0833006]
[1754930480348,0.9296537,120060.0,120050.0,0.0833006]
[1754930480548,1.29249015,120060.0,120050.0,0.0833006]
[1754930480849,1.29249015,120060.0,120050.0,0.1583106]
[1754930481048,1.29259015,120060.0,120050.0,0.1584106]
[1754930481446,1.29559015,120060.0,120050.0,0.1584106]
[1754930481748,0.84946,120060.0,120050.0,0.1584106]
[1754930481950,0.84946,120060.0,120050.0,0.2584106]
[1754930482246,0.85146,120060.0,120050.0,0.2584106]
[1754930482545,0.0051,120060.0,120050.0,0.2584106]
[1754930482752,0.0051,120060.0,120050.0,0.4250026]
[1754930482944,0.0051,120060.0,120050.0,0.4750026]
[1754930485242,0.0883934,120060.0,120050.0,0.4750026]
[1754930486353,0.0051,120060.0,120050.0,0.4750026]
[1754930486549,0.0883934,120060.0,120050.0,0.4750026]
[1754930486854,0.53452355,120060.0,120050.0,0.2584106]
[1754930487052,0.53452355,120060.0,120050.0,0.12438]
[1754930487245,1.38212355,120060.0,120050.0,0.2076803]
[1754930487851,1.38268355,120060.0,120050.0,0.2076803]
[1754930488046,1.38304355,120060.0,120050.0,0.1001]
[1754930488351,0.53452355,120060.0,120050.0,0.2076803]
[1754930488544,0.53452355,120060.0,120050.0,0.1834003]
[1754930488754,1.38264355,120060.0,120050.0,0.12438]
[1754930488951,0.53452355,120060.0,120050.0,0.2076803]
[1754930489147,1.38413346,120060.0,120050.0,0.12438]
[1754930489446,0.93800331,120060.0,120050.0,0.12438]
[1754930489652,0.53597346,120060.0,120050.0,0.12438]
[1754930490350,1.38409346,120060.0,120050.0,0.12438]
[1754930490752,0.53597346,120060.0,120050.0,0.12438]
[1754930490956,1.38509346,120060.0,120050.0,0.12438]
[1754930493557,0.08984331,120060.0,120050.0,0.14036]
[1754930493761,1.38341346,120060.0,120050.0,0.2584102]
[1754930494355,0.93712331,120060.0,120050.0,0.17511]
[1754930494559,1.38325346,120060.0,120050.0,0.12438]
[1754930494960,1.38325346,120060.0,120050.0,0.2076803]
[1754930495155,1.38325346,120060.0,120050.0,0.12438]
[1754930495362,0.53597346,120060.0,120050.0,0.1001]
[1754930495556,0.93688331,120060.0,120050.0,0.1001]
[1754930495757,1.38301346,120060.0,120050.0,0.1001]
[1754930498162,1.38301346,120060.0,120050.0,0.12438]
[1754930498864,0.53597346,120060.0,120050.0,0.2076803]
[1754930499058,1.38381346,120060.0,120050.0,0.2584103]